Cogmind - Beta 11.1 *** ADVENTURER MODE // 2022.07.18 @ 12:39:38 Player: porthos3 Result: Self-destructed Performance ------------- Evolutions (1) 500 Regions Visited (2) 400 Robots Destroyed (17) 85 Value Destroyed (216) 216 Prototype IDs (0) 0 Alien Tech Used (0) 0 Bonus (0) 0 TOTAL SCORE: 1201 Bonus ------- None Cogmind --------- Core Integrity 339/400 Matter 291/300 Energy 250/250 System Corruption 0% Temperature Warm (107) Movement Flying (37) Location -9/Materials Parts ------- > --- POWER (1) -------- Ion Engine > --- PROPULSION (4) --- Flight Unit Flight Unit > --- UTILITY (2) ------ (None) > --- WEAPON (2) ------- (None) > --- INVENTORY (5) ---- Ion Engine Light Ion Engine Flight Unit Small Storage Unit Peak State ------------ > --- POWER ------------ Ion Engine > --- PROPULSION ------- Flight Unit Flight Unit Flight Unit Flight Unit > --- UTILITY ---------- (None) > --- WEAPON ----------- Small Laser Light Assault Rifle > --- INVENTORY -------- Ion Engine Flight Unit Small Storage Unit [Rating: 7] Favorites ----------- Power Ion Engine Engine Ion Engine Propulsion Flight Unit Treads Light Treads Flight Unit Flight Unit Utility Huge Storage Unit Storage Huge Storage Unit Weapon Small Laser Energy Gun Small Laser Ballistic Gun Light Assault Rifle Build | -11 -10 -9 ------- Run | Scr Mat Mat Slots Evolved 2 | . . 2 Power . | . . . Propulsion 2 | . . 2 Utility . | . . . Weapon . | . . . Parts Attached 13 | 4 7 2 Power 1 | 1 . . Engine 1 | 1 . . Core . | . . . Reactor . | . . . Propulsion 9 | 1 6 2 Treads 2 | 1 1 . Leg . | . . . Wheel . | . . . Hover . | . . . Flight 7 | . 5 2 Utility 1 | . 1 . Device . | . . . Storage 1 | . 1 . Processor . | . . . Hackware . | . . . Protection . | . . . Artifact . | . . . Weapon 2 | 2 . . Energy Gun 1 | 1 . . Energy Cannon . | . . . Ballistic Gun 1 | 1 . . Ballistic Cannon . | . . . Launcher . | . . . Special Weapon . | . . . Impact Weapon . | . . . Slashing Weapon . | . . . Piercing Weapon . | . . . Special Melee Weapon . | . . . Unidentified Prototypes . | . . . Parts Lost 4 | . . 4 Power . | . . . Propulsion 2 | . . 2 Utility . | . . . Weapon 2 | . . 2 Highest Loss Streak 4 | . . 4 To Critical Strikes . | . . . Average Slot Usage (%) 72 | . 72 77 Engine 13 | . 14 11 Treads 6 | . 7 . Flight 22 | . 20 44 Storage 1 | . 1 . Energy Gun 13 | . 14 11 Ballistic Gun 13 | . 14 11 Naked Turns . | . . . Heaviest Build 87 | 7 87 7 Greatest Support 40 | 20 40 16 Greatest Overweight (x) 2 | . 2 . Average Overweight (x) . | . . . Largest Inventory Capacity 25 | 5 25 5 Average Capacity 6 | 5 7 5 Most Carried 5 | 4 5 4 Average Carried 3 | 1 3 3 Final Capacity 5 | 5 5 5 Final Carried 5 | 2 5 4 Class Distribution -------------------- 89% | Mutant 10% | Scavenger-Sprinter Dominant Class ---------------- Mutant | -10/Materials Scavenger-Sprinter | -9/Materials Resources | -11 -10 -9 ----------- Run | Scr Mat Mat Matter Collected 338 | 171 167 . Remotely . | . . . Salvage Created 457 | . 406 51 Parts 30 | . 26 4 Haulers Intercepted . | . . . Recyclers Shooed 2 | . 2 . Parts Field Recycled . | . . . Retrieved Matter . | . . . Parts Self-Destructed . | . . . Prevented . | . . . Kills | -11 -10 -9 ------- Run | Scr Mat Mat Combat Hostiles Destroyed 14 | . 11 3 Guns 14 | . 11 3 Classes Destroyed 4 | . 4 . Recycler 2 | . 2 . Watcher 1 | . 1 . Swarmer 12 | . 9 3 Grunt 2 | . 2 . Best Kill Streak 4 | . 4 3 Combat Bots Only 3 | . 3 3 Max Kills in Single Turn 2 | . 2 1 Gunslinging 1 | . 1 . Exploded . | . . . Melee . | . . . Uniques/NPCs Destroyed . | . . . Combat | -11 -10 -9 -------- Run | Scr Mat Mat Damage Taken 381 | . 124 257 Core 95 | . 34 61 Absorbed by Shields . | . . . Core Remaining (%) 93 | 100 86 . Volleys Fired 37 | . 28 9 Largest 2 | . 2 2 Hottest 60 | . 60 60 Shots Fired 74 | . 56 18 Gun 74 | . 56 18 Cannon . | . . . Launcher . | . . . Special . | . . . Kinetic 37 | . 28 9 Thermal 37 | . 28 9 Explosive . | . . . Electromagnetic . | . . . Robot Hit Streak 19 | . 19 8 Robot Miss Streak 4 | . 4 2 Penetration Max . | . . . Secondary Targets 3 | . 1 2 Max Gunslinging Chain 1 | . 1 1 Shots Hit Robots 53 | . 40 13 Core Hits 27 | . 23 4 Critical Kills . | . . . Critical Parts Destroyed . | . . . Critical Strikes . | . . . Melee Attacks . | . . . Impact . | . . . Slashing . | . . . Piercing . | . . . Sneak Attacks . | . . . Combat Hostiles . | . . . Follow-up Attacks . | . . . Damage Inflicted 504 | . 382 122 Guns 504 | . 382 122 Cannons . | . . . Explosions . | . . . Melee . | . . . Ramming . | . . . Kinetic 190 | . 142 48 Thermal 314 | . 240 74 Explosive . | . . . Electromagnetic . | . . . Impact . | . . . Slashing . | . . . Piercing . | . . . Highest Corruption . | . . . Average Corruption . | . . . Corruption Purged . | . . . Corruption Blocked . | . . . Overload Shots . | . . . Overflow Damage . | . . . Projectiles . | . . . Explosions . | . . . Melee . | . . . Knockbacks . | . . . Impact . | . . . Kinetic . | . . . Secondary . | . . . Self-Inflicted Damage . | . . . Shots . | . . . Rammed . | . . . Targets Rammed . | . . . Kicked . | . . . Crushed . | . . . Highest Temperature 119 | . 78 119 Average Temperature 32 | . 24 55 Received Heat Transfer 81 | . 18 63 Siege Activations . | . . . Robots Corrupted . | . . . Combat Hostiles . | . . . Parts Fried . | . . . Impact Corruptions . | . . . Robots Melted . | . . . Combat Hostiles . | . . . Parts Melted . | . . . Heat Transferred 725 | . 550 175 Parts Sabotaged . | . . . Parts Stolen . | . . . Parts Stripped . | . . . Power Chain Reactions . | . . . Missiles Intercepted . | . . . Alert | -11 -10 -9 ------- Run | Scr Mat Mat Peak Influence 367 | . 367 286 Initial 132 | . . 132 Average 169 | . 188 194 Maximum Alert Level 1 | . 1 1 Low Security (%) 59 | 100 53 61 Level 1 40 | . 46 38 Level 2 . | . . . Level 3 . | . . . Level 4 . | . . . Level 5 . | . . . High Security . | . . . Max Security . | . . . Squads Dispatched 3 | . 3 . Investigation 3 | . 3 . Extermination . | . . . Reinforcement . | . . . Assault . | . . . Garrison . | . . . Intercept . | . . . Searches Triggered . | . . . Construction Impeded . | . . . Haulers Reinforced . | . . . Active Scanning Responses . | . . . Cargo Convoy Interrupts . | . . . Stealth | -11 -10 -9 --------- Run | Scr Mat Mat Distress Signals 3 | . 3 . Communications Jammed . | . . . Distress Signals . | . . . Times Spotted 25 | . 18 7 Peak Tracking Total 6 | . 5 6 Tactical Retreats 3 | . 1 2 Traps | -11 -10 -9 ------- Run | Scr Mat Mat Traps Triggered 3 | . 3 . Indirectly . | . . . Trap Hack Attempts . | . . . Triggered . | . . . Disarmed . | . . . Reprogrammed . | . . . Reused . | . . . Traps Extracted . | . . . Installed . | . . . Triggered . | . . . Machines | -11 -10 -9 ---------- Run | Scr Mat Mat Machines Disabled . | . . . Max in Single Turn . | . . . Machines Sabotaged . | . . . Garrisons Compromised . | . . . Overloaded Fab Kills . | . . . Hacking | -11 -10 -9 --------- Run | Scr Mat Mat Machines Accessed 1 | . . 1 Terminals 1 | . . 1 Fabricators . | . . . Repair Stations . | . . . Recycling Units . | . . . Scanalyzers . | . . . Garrison Access . | . . . Total Hacks 1 | . . 1 Successful 1 | . . 1 Failed . | . . . Catastrophic . | . . . Database Lockouts . | . . . Manual . | . . . Terminals 1 | . . 1 Fabricators . | . . . Repair Stations . | . . . Recycling Units . | . . . Scanalyzers . | . . . Garrison Access . | . . . Terminal Hacks 1 | . . 1 Hauler Manifests 1 | . . 1 Fabricator Hacks . | . . . Repair Station Hacks . | . . . Recycling Unit Hacks . | . . . Scanalyzer . | . . . Garrison Access Hacks . | . . . Unauthorized Hacks . | . . . Terminals . | . . . Fabricators . | . . . Repair Stations . | . . . Recycling Units . | . . . Scanalyzers . | . . . Garrison Access . | . . . Data Cores Recovered . | . . . Used . | . . . Hacking Detections . | . . . Full Trace Events . | . . . Feedback Events . | . . . Feedback Blocked . | . . . Robot Schematics Acquired . | . . . Robots Built . | . . . Authchips . | . . . Time . | . . . Total Robot Build Rating . | . . . Part Schematics Acquired . | . . . Parts Built . | . . . Authchips . | . . . Time . | . . . Total Part Build Rating . | . . . Parts Repaired . | . . . Time . | . . . Parts Recycled . | . . . Recycled Matter . | . . . Retrieved Matter . | . . . Retrieved Components . | . . . Parts Scanalyzed . | . . . Part Schematics Acquired . | . . . Parts Damaged . | . . . Bothacking | -11 -10 -9 ------------ Run | Scr Mat Mat Used RIF Installer . | . . . Robots Hacked . | . . . Non-combat . | . . . Combat . | . . . Robot Hacks Applied . | . . . Relay Couplers Released . | . . . Fabnet Peak Effective % . | . . . Robots Rewired . | . . . Allies Hacked . | . . . Hacks Repelled . | . . . Allies | -11 -10 -9 -------- Run | Scr Mat Mat Total Allies . | . . . Largest Group . | . . . Highest-Rated Group . | . . . Highest-Rated Ally . | . . . Total Orders . | . . . Ally Attacks . | . . . Total Damage . | . . . Kills . | . . . Allies Corrupted . | . . . Allies Melted . | . . . Intel | -11 -10 -9 ------- Run | Scr Mat Mat Robot Analysis Total . | . . . Derelict Logs Recovered . | . . . Drone Launches . | . . . Drone Recoveries . | . . . Exploration | -11 -10 -9 ------------- Run | Scr Mat Mat Turns Passed 497 | 51 389 57 Spaces Moved 658 | 33 534 91 Core 10 | 10 . . Treads 56 | 23 33 . Legs . | . . . Wheels . | . . . Hover . | . . . Flight 592 | . 501 91 Fastest Speed 31 | 50 37 31 Average Speed 49 | 126 47 31 Slowest Speed 320 | 160 320 31 Overloaded Moves . | . . . Propulsion Burnouts . | . . . Robots Hopped . | . . . Cave-ins Triggered . | . . . Exploration Rate (%) 37 | 4 95 12 Regions Visited 2 Branch Regions . Pre-discovered Areas . | . . . Known Exits Taken . | . . . Unknown Exits Taken 2 | 1 1 . Scrap Searched . | . . . Spaces Dug . | . . . Terrain Destroyed . | . . . Melee . | . . . Projectile . | . . . AOE . | . . . Terrain Rammed . | . . . Walls Destroyed . | . . . Machines Disabled . | . . . Actions | -11 -10 -9 --------- Run | Scr Mat Mat Total 764 | 42 619 103 Wait 35 | . 35 . Move 656 | 32 533 91 Hop . | . . . Pick Up 17 | 6 10 1 Fast Attach . | . . . Attach 13 | 4 7 2 Detach . | . . . Swap . | . . . Drop 6 | . 6 . Fire 37 | . 28 9 Melee . | . . . Ram . | . . . Kick . | . . . Crush . | . . . Escape Stasis . | . . . Rewire . | . . . Trap . | . . . Miscellaneous . | . . . Route ------- -11/Scrapyard -10/Materials (discovered 4 exits: *Mat x3 / [*Min]) -9/Materials History --------- Turn | Location | Event 27 | -11/Scrapyard | Discovered new exit (range 15) 52 | -11/Scrapyard | Entered Materials 156 | -10/Materials | Discovered new exit (range 16) 200 | -10/Materials | Discovered new exit (range 10) 303 | -10/Materials | Build established: Mutant 304 | -10/Materials | Discovered new exit (range 7) 405 | -10/Materials | Discovered new exit (range 13) 441 | -10/Materials | Entered another Materials area 441 | -9/Materials | Evolved 2 slots: Propulsion x2 498 | -9/Materials | Self-destructed Last Messages --------------- 2x Med. Storage Unit 2x Datajack A-02 Transporter 4x Field Recycling Unit A-02 Transporter 6x Mni. Grenade Launcher A-02 Transporter 1x Cooling System 4x Lrg. Matter Pod 1x VTOL Module A-02 Transporter 4x Imp. Assault Rifle 00476_ S-10 Pest destroyed. 00478_ Switching to secondary target: Y-45 Defender. 00484_ S-10 Pest destroyed. 00484_ Switching to secondary target: Y-45 Defender. 00492_ Flight Unit destroyed. 00496_ K-01 Serf collects debris. 00497_ Lgt. Assault Rifle destroyed. 00498_ Sml. Laser destroyed. Map ----- +----------------------------------------------------+ | ????????????????????????????? # """ # | | ???????????????????????????# """ """ # """""# | | ???????????????????????????# """ "Y" # """""# | | ???????????????????????????# """ # """""# | | ???????????????????????????? # """ # | | ?????????????????????????????? # # | | ???????????????????????????????? # "T" # | | ?????????????????????????????????? # """ # | | ???????????????? #################+######+### | | ??????????????? | | ??????????????? | | ??????????????? | | ????????????????????#########+#############+###### | | ????????????????????# # #?????# #? | | ????????????????????#""" # #?????# #? | | ????????????????????#""" # #?????# #? | | ????????????????????#""" # #?????# """"""" #? | | ????????????????????# # [ #?????# """"""" #? | | ????????????????????# # #?????# """"""" #? | | ????????????????????#####+## #?????# """"""" #? | | ????????????????????????# / #?????# """"""" #? | | ????????????????????????# ## #???????????#####? | | ????????? #####%####+##????????????????? | | ????????? k=#??# #?????????????????? | | ????????? #####Y#??# #?????????????????? | | ????????????????????????#@#??# #?????????????????? | | ????????????????????????# #??# #?????????????????? | | ????????????????????????#[#??# #?????????????????? | | ????????????????????????#Y#?? ?????????????????? | | ???????????????????????? ?? ?????????????????? | | ????????????????????????###?? ?????????????????? | | ?????????????????????????????# #?????????????????? | | ?????????????????????????????? ??????????????????? | | ?????????????????????????????? ??????????????????? | | ?????????????????????????????? ??????????????????? | | ?????????????????????????????? ??????????????????? | | ?????????????????????????????? ??????????????????? | | ?????????????????????????????? ??????????????????? | | ?????????????????????????????????????????????????? | | ?????????????????????????????????????????????????? | | ?????????????????????????????????????????????????? | | ?????????????????????????????????????????????????? | | ?????????????????????????????????????????????????? | | ?????????????????????????????????????????????????? | | ?????????????????????????????????????????????????? | | ?????????????????????????????????????????????????? | | ?????????????????????????????????????????????????? | | ?????????????????????????????????????????????????? | | ?????????????????????????????????????????????????? | | ?????????????????????????????????????????????????? | +----------------------------------------------------+ Best States ------------- Heat Dissipation 28 Energy Generation 10 Energy Capacity 250 Matter Stores 300 Matter Capacity 300 Sight Range 16 Terrain Scan Density 10 Resistance: KI 20 Resistance: TH 20 Resistance: EX 20 Resistance: EM 20 Resistance: I 20 Resistance: S 20 Resistance: P 20 Evasion (%) 63 Recoil Reduction 2 Offensive Hacking 10 Item Schematics ----------------- None Robot Schematics ------------------ None Fabricated ------------ Nothing Alien Tech Used ----------------- None Achievements -------------- None Challenges ------------ None Game ------ Seed TitaniumDimensionalRouter Manual? 0 Play Time 00:17:54 Cumulative 24.2 hours Start 2022.07.18 @ 11:17:02 End 2022.07.18 @ 12:39:38 Sessions 1 Manual Loads 0 Difficulty Adventurer Special Mode None Game No. 26 Rogue 19 Adventurer 7 Explorer 0 Win Type - Total 0 Types 0/0/0/0/0/0/0/0/0 Lore% 7 Gallery% 18 Achievement% 18 Wizard Run 0 Options --------- ASCII 0 Keyboard 0 Movement Mouse Keybinds 0 Fullscreen 1 Font 24/Smallcaps Map View 76x50 Tactical HUD 1 Map Filters NONE Filters NONE Steam 1 RUN: 65e9ab96-8db0-469c-8f4f-603c22dddf6f